bitfinex-derivatives/quotes_ETHF0:USTF0_20250902
["timestamp","ask_amount","ask_price","bid_price","bid_amount"]
[1756784937305,0.52632708,4373.2,4373.1,4.33708764]
[1756784938611,0.21472708,4373.2,4373.1,8.33708764]
[1756784939110,0.21472708,4373.2,4373.1,49.13708764]
[1756784939312,0.21472708,4373.2,4373.1,45.13708764]
[1756784943317,0.79778764,4374.1,4373.4,0.073]
[1756784943522,0.5166,4373.6,4373.5,0.306]
[1756784943817,0.5270774,4373.6,4373.5,0.3288]
[1756784944211,0.73208244,4373.6,4373.5,0.306]
[1756784945213,0.73208244,4373.6,4373.5,1.10378764]
[1756784945416,0.92438244,4373.6,4373.5,1.10378764]
[1756784947025,0.92438244,4373.6,4373.5,0.073]
[1756784947216,0.92438244,4373.6,4373.5,0.306]
[1756784947416,0.92438244,4373.6,4373.1,44.80558764]
[1756784947417,0.4296,4373.5,4373.1,44.80558764]
[1756784947622,0.3973,4372.8,4372.7,2.07870622]
[1756784947927,0.92438244,4372.8,4372.7,0.306]
[1756784948128,0.92438244,4372.8,4372.7,41.106]
[1756784953819,0.7089,4372.8,4372.7,41.106]
[1756784954019,0.92698904,4372.8,4372.7,41.106]
[1756784959228,0.92698904,4372.8,4372.7,40.8365]
[1756784959533,0.92698904,4372.8,4372.7,0.0365]
[1756784959735,0.92698904,4372.8,4372.7,0.2695]
[1756784960036,0.52968904,4372.8,4372.7,0.3306]
[1756784960425,0.21808904,4372.8,4372.7,4.55929]
[1756784960733,0.19458904,4372.8,4372.7,41.1306]
[1756784962630,0.19458904,4372.8,4372.7,46.15707764]
[1756784962830,3.2078,4374.2,4373.6,0.79778764]
[1756784963032,3.4107,4374.2,4374.1,0.79778764]
[1756784963234,3.4107,4374.2,4374.1,1.03078764]
[1756784963539,3.9036,4374.2,4374.1,0.233]
[1756784964238,3.9036,4374.2,4374.1,41.033]
[1756784965139,0.6958,4374.2,4374.1,41.033]
[1756784969044,1.20038764,4374.2,4373.6,4.00558764]
[1756784969244,0.6958,4373.7,4373.6,0.79778764]
[1756784969543,0.6958,4373.7,4373.6,41.83078764]
[1756784971047,0.2932,4373.7,4373.6,41.83078764]
[1756784971444,0.2932,4373.7,4373.6,41.033]
[1756784971741,0.91808764,4374.5,4373.6,41.83078764]
[1756784972041,0.2932,4374.2,4373.9,0.79778764]
[1756784972238,0.2932,4374.1,4374.0,0.233]
[1756784973141,0.2932,4374.6,4374.0,0.233]
[1756784973340,0.2932,4374.5,4374.4,0.79778764]
[1756784973539,0.2932,4374.5,4374.4,1.03078764]
[1756784974343,0.2932,4375.2,4374.4,1.03078764]
[1756784974542,0.4961,4375.2,4375.1,0.79778764]
[1756784974739,0.70265219,4375.2,4375.1,1.03078764]
[1756784975134,0.70265143,4375.2,4375.1,1.03078764]
[1756784975736,0.20655143,4375.2,4375.1,1.03078764]
[1756784976452,0.49975143,4375.2,4375.1,1.03078764]
[1756784981349,0.2932,4375.2,4375.1,1.03078764]
[1756784981847,0.3037,4375.8,4375.1,1.03078764]
[1756784982043,0.20595082,4375.7,4375.1,0.233]
[1756784982347,0.59925082,4375.6,4375.5,0.79778764]
[1756784982539,0.59925082,4375.6,4375.5,1.03078764]
[1756784982739,0.90295082,4375.6,4375.5,1.03078764]
[1756784983753,0.90295082,4375.6,4375.5,1.06209919]
[1756784984852,0.50965082,4375.6,4375.5,1.06209919]
[1756784985351,0.3037,4375.6,4375.5,1.06209919]
[1756784985650,0.3037,4375.6,4375.5,4.26989919]
[1756784987555,0.3037,4375.6,4375.5,4.46491372]
[1756784991050,0.697,4375.6,4375.5,4.46491372]
[1756784997454,0.90306035,4375.6,4375.5,4.46491372]
[1756784999860,0.90316935,4375.6,4375.5,4.46491372]
[1756785000054,0.90316935,4375.6,4375.5,0.03131155]
[1756785000251,0.90316935,4375.6,4375.5,0.26431155]
[1756785005758,0.90083834,4375.6,4375.5,0.26431155]
[1756785009767,0.50753834,4375.6,4375.5,1.25711372]
[1756785010668,0.20383834,4375.6,4375.5,8.69345372]
[1756785010863,0.3037,4376.3,4375.5,8.46491372]
[1756785011066,0.3037,4376.3,4376.2,0.99280217]
[1756785011262,0.4997,4376.3,4376.2,42.02580217]
[1756785011865,0.4997,4376.3,4376.2,42.05711372]
[1756785013370,0.3037,4376.3,4376.2,42.05711372]
[1756785013565,0.3037,4376.3,4376.2,40.83131155]
[1756785013772,0.7027,4376.3,4376.2,0.26431155]
[1756785014968,0.3037,4376.3,4376.2,1.25711372]
[1756785015670,0.3037,4376.3,4376.2,42.05711372]
[1756785016073,0.3037,4376.3,4376.2,41.06431155]
[1756785016368,0.5247,4376.0,4375.9,3.2078]
[1756785016766,0.5247,4376.0,4375.9,0.233]
[1756785018370,0.8173,4376.0,4375.9,0.233]
[1756785022977,1.02891488,4376.0,4375.9,0.233]
[1756785023673,0.2926,4375.9,4375.5,40.8]
[1756785023872,0.6916,4375.7,4375.6,0.233]
[1756785024075,0.90321488,4375.7,4375.6,0.233]
[1756785024377,0.90321488,4375.7,4375.6,0.3328]
[1756785024876,0.69721488,4375.7,4375.6,0.4326]
[1756785025677,0.90321488,4375.7,4375.6,0.4326]
[1756785026776,0.6916,4375.7,4375.6,0.4326]
[1756785026978,0.90320063,4375.7,4375.6,0.4326]
[1756785027173,0.50420063,4375.7,4375.6,0.4326]
[1756785027478,0.21160063,4375.7,4375.6,0.495]
[1756785027976,0.50420063,4375.7,4375.6,41.295]
[1756785029078,0.50420063,4375.7,4375.6,40.8]
[1756785029278,0.50420063,4375.7,4375.6,41.033]
[1756785029978,0.50420063,4375.7,4375.6,41.0954]
[1756785030571,0.50420063,4375.7,4375.6,42.02580217]
[1756785032476,0.50420063,4375.7,4375.6,42.08820217]
[1756785032672,0.21160063,4375.7,4375.6,42.08820217]
[1756785034082,0.2926,4376.4,4376.0,0.262]
[1756785034379,0.90325352,4376.3,4376.2,0.1996]
[1756785034574,0.2926,4376.2,4376.1,0.3328]
[1756785034880,0.90325352,4376.2,4376.1,0.3328]
[1756785035577,0.6916,4375.9,4375.6,44.0078]
[1756785035772,0.90325352,4375.8,4375.7,0.233]
[1756785036084,0.90325352,4375.8,4375.7,0.3328]
[1756785036373,0.90325352,4375.8,4375.7,0.4326]
[1756785036581,0.50425352,4375.8,4375.7,0.495]
[1756785037281,0.21165352,4375.8,4375.7,0.495]
[1756785037474,0.50181643,4375.8,4375.7,0.495]
[1756785037876,0.2926,4375.8,4375.7,0.495]
[1756785038074,0.5018112,4375.8,4375.7,0.495]
[1756785040580,0.5018112,4375.8,4375.7,0.4326]
[1756785041370,0.2092112,4375.8,4375.7,0.90462]
[1756785041874,0.2092112,4375.8,4375.7,1.48610217]
[1756785042180,0.2092112,4375.8,4375.7,3.52700439]
[1756785042683,0.2092112,4375.8,4375.7,1.48610217]
[1756785043579,0.5163112,4375.8,4375.7,1.48610217]
[1756785043881,0.20939319,4375.8,4375.7,1.48610217]
[1756785044383,0.71109319,4375.8,4375.7,1.42540217]
[1756785044681,0.71109319,4375.8,4375.7,1.48610217]
[1756785044682,0.51649319,4375.8,4375.7,1.48610217]
[1756785044977,0.91999319,4375.8,4375.7,0.1996]
[1756785045183,0.91999319,4375.8,4375.7,2.27207708]
[1756785045371,0.91999319,4375.8,4375.7,0.233]
[1756785045976,0.61289319,4375.8,4375.6,44.0078]
[1756785046281,0.51649319,4375.7,4375.6,44.0078]
[1756785046479,0.51649319,4375.7,4375.6,44.2408]
[1756785048171,0.51649465,4375.7,4375.6,44.2408]
[1756785048372,0.51649465,4375.7,4375.6,46.27987708]
[1756785048582,0.51649465,4375.7,4375.6,46.34057708]
[1756785049582,0.20939465,4375.7,4375.6,47.13717194]
[1756785050279,0.20939465,4375.7,4375.6,45.12940641]
[1756785051281,0.20939465,4375.7,4375.6,44.33281155]
[1756785051587,0.20939465,4375.7,4375.6,45.12940641]
[1756785052182,0.51649465,4375.7,4375.6,45.12940641]
[1756785052786,0.20939465,4375.7,4375.6,45.12940641]
[1756785053690,0.51649465,4375.7,4375.6,45.12940641]
[1756785056185,0.20939465,4375.7,4375.6,45.12940641]
[1756785056683,0.20939465,4375.7,4375.6,45.63230127]
[1756785056882,0.51649465,4375.7,4375.6,45.06870641]
[1756785057085,0.51649465,4375.7,4375.6,45.12940641]
[1756785058585,0.3071,4375.7,4375.6,45.12940641]
[1756785058782,0.5278079,4375.7,4375.6,45.12940641]
[1756785059192,0.52780673,4375.7,4375.6,45.12940641]
[1756785059890,0.2067675,4375.7,4375.6,45.92600127]
[1756785060088,0.3071,4376.3,4376.2,0.2549]
[1756785060289,0.3071,4376.3,4376.2,6.56447205]
[1756785060489,0.5017,4376.3,4376.2,6.50377205]
[1756785061092,0.5017,4376.3,4376.2,5.70717719]
[1756785061291,0.5017,4376.3,4376.2,6.50377205]
[1756785061492,0.5017,4376.3,4376.2,47.30377205]
[1756785062393,0.5017,4376.3,4376.2,45.32490641]
[1756785062597,0.3071,4376.3,4376.2,47.36577205]
[1756785062895,0.3071,4376.9,4376.2,47.36577205]
[1756785063097,0.5017,4376.8,4376.7,3.4064]
[1756785063293,0.5017,4376.8,4376.7,3.67071155]
[1756785063494,0.7106,4376.8,4376.7,3.67071155]
[1756785063697,0.7106,4376.8,4376.7,3.57141155]
[1756785064196,0.7106,4376.8,4376.7,4.36800641]
[1756785064598,0.7106,4376.8,4376.7,4.26870641]
[1756785066804,0.7106,4376.8,4376.7,4.36800641]
[1756785067001,0.7106,4376.8,4376.7,4.46730641]
[1756785067207,0.5017,4376.8,4376.7,4.46730641]
[1756785067900,0.7106,4376.8,4376.7,4.46730641]
[1756785071103,0.3071,4376.8,4376.7,4.52880641]
[1756785072810,3.2078,4377.7,4376.7,4.52880641]
[1756785073011,0.6801,4377.3,4377.2,0.89489486]
[1756785073204,0.6801,4377.3,4377.2,1.12789486]
[1756785073410,0.2954,4377.3,4377.2,4.52680641]
[1756785074607,0.4848,4377.3,4377.2,4.46530641]
[1756785074808,0.2954,4377.9,4377.8,0.1966]
[1756785075011,0.2954,4377.9,4377.8,45.23399486]
[1756785075512,0.2954,4377.9,4377.8,45.26530641]
[1756785075711,0.2954,4377.9,4377.8,44.46871155]
[1756785076011,4.90852,4377.9,4377.4,3.2078]
[1756785076212,0.6801,4377.4,4377.3,0.233]
[1756785076414,0.6801,4377.4,4377.2,0.233]
[1756785076612,0.6801,4377.4,4377.3,0.233]
[1756785076914,0.6801,4376.8,4376.7,3.2078]
[1756785077217,0.6801,4376.8,4376.7,3.4408]
[1756785078911,0.6801,4376.8,4376.7,3.5892]
[1756785079218,0.2954,4376.8,4376.7,3.8304]
[1756785080209,0.4848,4376.8,4376.7,3.7376]
[1756785080415,0.2954,4376.8,4376.7,3.7376]
[1756785080614,0.2954,4376.8,4376.7,3.8304]
[1756785081217,0.1194,4377.5,4376.7,3.8304]
[1756785081413,0.3847,4377.3,4377.2,0.94499486]
[1756785081614,0.6801,4377.3,4377.2,1.17799486]
[1756785082119,0.6801,4377.3,4377.2,1.02959486]
[1756785083413,0.6801,4377.3,4377.2,1.17799486]
[1756785083916,0.4848,4377.3,4377.2,0.5298]
[1756785084116,0.6801,4377.3,4377.2,1.32639486]
[1756785087422,0.6801,4377.3,4377.2,0.232]
[1756785087618,1.47669486,4377.3,4377.2,0.232]
[1756785088011,0.2954,4377.2,4376.7,3.2078]
[1756785088316,0.6801,4376.8,4376.7,3.3562]
[1756785088509,0.6801,4376.8,4376.7,3.5882]
[1756785088926,0.6801,4376.8,4376.7,3.7366]
[1756785089422,0.88401297,4376.8,4376.7,3.7366]
[1756785089618,0.6801,4376.8,4376.7,3.7366]
[1756785089825,0.88401301,4376.8,4376.7,3.7366]
[1756785091214,0.68871301,4376.8,4376.7,3.8294]
[1756785091414,0.49931301,4376.8,4376.7,3.8294]
[1756785091612,0.20391301,4376.8,4376.7,3.8294]
[1756785093625,0.2954,4377.5,4377.4,0.3896]
[1756785093923,0.49930093,4377.5,4377.4,1.41819486]
[1756785094126,0.68870093,4377.5,4377.4,1.32539486]
[1756785094526,0.49930093,4377.5,4377.4,1.41819486]
[1756785095924,0.68870093,4377.5,4377.4,1.32539486]
[1756785096320,0.68870093,4377.5,4377.4,0.232]
[1756785096321,1.00340093,4377.5,4377.4,0.232]
[1756785096525,1.00340093,4377.5,4376.8,2.84127423]
[1756785096526,0.7995,4377.0,4376.8,2.84127423]
[1756785096727,0.88400093,4376.9,4376.8,0.94499486]
[1756785096926,0.88400093,4376.9,4376.8,0.1484]
[1756785097231,0.88400093,4376.9,4376.8,0.5288]
[1756785097527,0.2954,4376.8,4376.7,3.2078]
[1756785097728,0.88400093,4376.8,4376.7,0.3804]
[1756785097920,0.88400093,4376.8,4376.7,0.5288]
[1756785098124,0.88400093,4376.8,4376.7,0.232]
[1756785099632,0.89964265,4376.8,4376.7,0.232]
[1756785101425,0.51494265,4376.8,4376.7,0.6227]
[1756785101622,0.71064265,4376.8,4376.7,1.32609486]
[1756785101822,0.90044265,4376.8,4376.7,1.32609486]
[1756785102023,0.90044265,4376.8,4376.7,0.232]
[1756785108233,0.90044265,4376.8,4376.7,0.3811]
[1756785109735,0.71064265,4376.8,4376.7,0.5302]
[1756785109938,0.21954265,4376.8,4376.7,4.6234]
[1756785110136,0.3117,4377.5,4376.8,0.41122]
[1756785110341,0.3117,4377.5,4377.4,4.49842369]
[1756785110636,0.52745679,4377.5,4377.4,45.53042369]
[1756785111734,0.52745679,4377.5,4377.4,45.62362369]
[1756785112539,0.52745679,4377.5,4377.4,45.53042369]
[1756785113635,0.64285679,4377.5,4377.4,44.0078]
[1756785113835,1.02835679,4377.5,4377.4,0.232]
[1756785115237,0.91295679,4377.5,4377.4,1.52262369]
[1756785117339,0.52745679,4377.5,4377.4,4.82362369]
[1756785117541,0.21575679,4377.5,4377.4,4.82362369]
[1756785117942,0.52745679,4377.5,4377.4,4.82362369]
[1756785120949,0.52728719,4377.5,4377.4,4.82362369]
[1756785122945,0.72298719,4377.5,4377.4,4.73042369]
[1756785123147,0.91278719,4377.5,4377.4,4.58132369]
[1756785123351,1.02818719,4377.5,4377.4,4.43222369]
[1756785123555,1.02818719,4377.5,4377.4,4.58192369]
[1756785123746,0.72298719,4377.5,4377.4,4.82522369]
[1756785123945,0.72298719,4377.5,4377.4,4.73162369]
[1756785124153,0.52728719,4377.5,4377.4,4.82522369]
[1756785124353,0.21558719,4377.5,4377.4,4.82522369]
[1756785128660,0.3855,4379.0,4378.9,0.4026]
[1756785128860,0.3855,4379.0,4378.9,1.62702369]
[1756785129256,0.3855,4379.0,4378.9,1.91322369]
[1756785130254,0.3855,4379.0,4378.9,1.62702369]
[1756785130460,0.6972,4379.0,4378.9,1.62702369]
[1756785131257,0.6972,4379.0,4378.9,1.39502369]
[1756785131458,4.5011,4379.0,4378.9,0.232]
[1756785131960,0.0281,4378.5,4378.4,0.232]
[1756785132356,4.0281,4378.5,4378.4,0.5407]
[1756785133161,4.0281,4378.5,4378.4,0.3087]
[1756785133362,4.0281,4378.5,4378.4,0.232]
[1756785133556,4.0281,4378.5,4377.9,40.8]
[1756785133557,4.0214,4378.5,4378.0,0.3087]
[1756785133760,4.20022369,4379.0,4377.9,40.8]
[1756785133761,0.0214,4378.0,4377.9,41.1087]
[1756785133959,0.0214,4378.0,4377.9,0.7328]
[1756785135165,0.0281,4378.0,4377.9,0.5407]
[1756785137159,0.0281,4378.0,4377.4,0.99242369]
[1756785137356,0.0214,4377.6,4377.5,0.232]
[1756785137662,0.0214,4377.6,4377.5,1.0653]
[1756785139968,0.0214,4377.6,4377.5,0.9407]
[1756785140568,0.20819777,4377.6,4377.5,0.9407]
[1756785141068,0.20819777,4377.6,4377.5,1.0653]
[1756785141869,0.20819777,4377.6,4377.5,0.9407]
[1756785142164,0.20819777,4377.6,4376.8,3.2078]
[1756785142165,5.17922146,4377.6,4376.9,0.3087]
[1756785142368,0.0214,4377.0,4376.9,0.5008]
[1756785143368,0.20819202,4377.0,4376.9,0.5008]
[1756785145765,0.20819202,4377.0,4376.9,0.3087]
[1756785146668,5.20731571,4377.0,4376.2,0.232]
[1756785146868,0.0107,4376.4,4376.3,0.7087]
[1756785147068,0.19749202,4376.4,4376.3,0.7087]
[1756785147570,0.20819202,4376.4,4376.3,0.7087]
[1756785148472,0.21489202,4376.4,4376.3,0.3087]
[1756785148870,0.20819202,4376.4,4376.3,0.5008]
[1756785151072,0.0214,4376.4,4376.3,0.5008]
[1756785151272,0.20776994,4376.4,4376.3,0.5008]
[1756785151667,1.20014632,4376.4,4376.3,0.5008]
[1756785151873,1.20684632,4376.4,4376.3,0.3087]
[1756785152776,1.20014632,4376.4,4376.3,0.3087]
[1756785153870,1.20014632,4376.4,4376.3,0.5008]
[1756785154760,1.01382369,4376.4,4376.3,0.5008]
[1756785156073,0.0214,4376.4,4376.3,0.5008]
[1756785156264,0.2534,4376.4,4376.3,0.5008]
[1756785160079,0.2534,4376.4,4376.3,0.7087]
[1756785161474,0.2427,4376.4,4376.3,0.7087]
[1756785164380,0.252,4376.4,4376.3,0.7087]
[1756785167282,0.252,4376.4,4376.3,0.5008]
[1756785168386,0.232,4376.4,4376.3,0.7076]
[1756785168679,2.8926,4376.6,4376.5,0.8211]
[1756785168981,3.2078,4377.1,4377.0,0.5195]
[1756785169381,3.2078,4377.1,4377.0,0.8211]
[1756785169583,3.2078,4377.1,4377.0,1.6174086]
[1756785170281,2.5831,4377.1,4377.0,5.6174086]
[1756785170486,3.2078,4377.6,4377.0,5.1956086]
[1756785170683,3.2078,4377.6,4377.4,0.7963086]
[1756785170988,0.232,4378.0,4377.4,0.7963086]
[1756785171179,0.3052,4377.9,4377.7,0.7963086]
[1756785172076,0.4326,4378.2,4377.7,0.7963086]
[1756785172278,0.5058,4378.1,4377.7,0.7963086]
[1756785172474,0.4326,4378.2,4377.7,0.7963086]
[1756785172985,0.3052,4378.0,4377.7,0.7963086]
[1756785173184,0.3052,4378.1,4377.7,0.7963086]
[1756785173478,0.4326,4378.2,4377.7,0.7963086]
[1756785173683,0.3052,4378.1,4377.7,0.7963086]
[1756785174182,0.3052,4378.0,4377.7,0.7963086]
[1756785174488,0.3052,4378.1,4377.7,0.7963086]
[1756785174779,0.3052,4377.9,4377.3,3.2078]
[1756785174980,0.2006,4377.8,4377.3,4.0041086]
[1756785175282,0.3919,4377.4,4377.3,3.2078]
[1756785175483,1.4934086,4377.4,4376.8,1.0283086]
[1756785175787,0.2006,4377.3,4376.8,1.0283086]
[1756785176087,0.7963086,4377.4,4376.8,1.0283086]
[1756785176288,0.7963086,4377.4,4376.8,0.232]
[1756785176289,0.3052,4377.3,4376.8,0.232]
[1756785176588,0.5058,4377.3,4376.8,0.232]
[1756785177584,0.5058,4376.8,4376.7,0.7963086]
[1756785178986,0.6971,4376.8,4376.3,40.8]
[1756785179192,0.5058,4376.3,4376.2,3.2078]
[1756785180183,0.6971,4376.3,4376.2,3.2078]
[1756785183490,0.3052,4376.9,4376.2,4.2361086]
[1756785183684,0.3052,4376.8,4376.6,0.7963086]
[1756785183889,0.6279,4377.0,4376.6,0.7963086]
[1756785184189,3.2078,4376.9,4376.3,0.7963086]
[1756785184392,0.3052,4376.7,4376.3,0.7963086]
[1756785184593,0.3052,4376.6,4376.3,0.7963086]
[1756785184786,0.2006,4376.8,4376.3,0.7963086]
[1756785184986,0.5058,4376.8,4376.3,0.7963086]
[1756785185187,0.2006,4376.7,4376.3,0.7963086]
[1756785185388,0.2006,4376.6,4376.3,0.7963086]
[1756785185692,0.2006,4376.8,4376.3,0.7963086]
[1756785185881,0.2006,4376.6,4376.3,0.7963086]
[1756785186084,0.5058,4376.8,4376.3,0.7963086]
[1756785186288,0.2006,4376.8,4376.3,0.7963086]
[1756785186885,0.2006,4376.7,4376.3,0.7963086]
[1756785187191,0.2006,4376.8,4376.3,0.7963086]
[1756785187386,0.1913,4376.4,4376.2,3.2078]
[1756785187593,0.2006,4375.9,4375.8,0.232]
[1756785187891,0.5058,4375.9,4375.8,0.232]
[1756785189093,0.6971,4375.8,4375.7,3.2078]
[1756785189298,0.3052,4375.8,4375.7,4.0041086]
[1756785189594,0.3052,4376.3,4375.7,4.0041086]
[1756785189893,0.5058,4376.1,4375.7,4.0041086]
[1756785190085,0.3052,4376.0,4375.7,4.0041086]
[1756785190293,0.3052,4375.9,4375.7,3.2078]
[1756785190482,3.2078,4376.4,4375.8,0.7963086]
[1756785191294,0.2901,4376.3,4375.8,0.7963086]
[1756785191592,3.2078,4376.4,4375.8,0.7963086]
[1756785191994,0.2901,4376.3,4375.8,0.7963086]
[1756785192387,3.2078,4376.4,4375.8,0.7963086]
[1756785192988,0.2901,4376.3,4375.8,0.7963086]
[1756785193191,4.0041086,4376.4,4375.8,0.7963086]
[1756785193388,0.2901,4376.3,4375.8,0.7963086]
[1756785193795,0.1985,4375.9,4375.8,0.7983086]
[1756785193991,0.4886,4375.9,4375.8,0.7983086]
[1756785199395,0.2901,4375.9,4375.8,0.7983086]
[1756785199599,0.2901,4376.4,4375.8,6.05514719]
[1756785199900,0.2901,4376.8,4376.3,4.0061086]
[1756785200096,0.4886,4376.8,4376.7,0.7983086]
[1756785200292,0.4886,4376.8,4376.7,0.002]
[1756785201496,0.6974,4376.8,4376.7,0.001]
[1756785201692,0.6974,4376.8,4376.5,0.232]
[1756785202494,0.6974,4376.8,4376.7,0.001]
[1756785204596,0.1179,4376.5,4376.3,3.2078]
[1756785204794,1.4937086,4376.4,4376.3,0.232]
[1756785204995,0.6974,4375.8,4375.7,3.2088]
[1756785205498,0.6974,4375.8,4375.7,3.4408]
[1756785209103,0.6974,4375.8,4375.7,0.233]
[1756785209600,0.7963086,4375.9,4375.6,0.232]
[1756785209601,0.6974,4375.7,4375.6,0.232]
[1756785210803,0.4073,4375.7,4375.1,3.2078]
[1756785211000,0.6974,4375.3,4375.2,0.234]
[1756785213402,0.2901,4375.9,4375.2,0.234]
[1756785213596,0.4886,4375.9,4375.8,0.7983086]
[1756785213801,0.4886,4375.9,4375.8,1.0303086]
[1756785214195,0.6974,4375.9,4375.8,0.233]
[1756785214700,0.2901,4375.2,4375.1,3.2078]
[1756785214901,0.88774182,4375.2,4375.1,3.4398]
[1756785215102,0.88774182,4375.2,4375.1,3.4408]
[1756785215500,0.67894182,4375.2,4375.1,3.4418]
[1756785216702,1.68405042,4375.2,4374.7,2.03867341]
[1756785216906,0.6974,4374.7,4374.6,5.24747341]
[1756785217106,0.88774182,4374.7,4374.6,3.4408]
[1756785218203,0.67894182,4374.7,4374.6,3.4418]
[1756785220008,0.88774182,4374.7,4374.6,3.4418]
[1756785221410,0.67894182,4374.7,4374.6,3.4418]
[1756785221903,0.67894182,4374.7,4374.6,4.2381086]
[1756785222508,0.87994182,4374.7,4374.6,4.2381086]
[1756785223599,0.6896,4374.7,4374.6,4.2381086]
[1756785223910,0.87968024,4374.7,4374.6,4.2381086]
[1756785226309,1.67598884,4374.7,4374.6,3.2078]
[1756785226604,0.6906,4374.2,4374.1,3.2078]
[1756785226802,0.6906,4374.2,4374.1,3.4398]
[1756785227399,0.6906,4374.2,4374.1,3.2078]
[1756785227604,0.88063253,4374.2,4374.1,3.2078]
[1756785228109,0.19003253,4374.2,4374.1,3.2078]
[1756785228411,0.2933,4375.4,4374.1,7.43642]
[1756785228607,0.6795519,4375.3,4375.2,0.7963086]
[1756785228803,0.6795519,4375.3,4375.2,1.0283086]
[1756785229301,0.6795519,4375.3,4375.2,0.232]
[1756785229500,0.8805519,4375.3,4375.2,0.232]
[1756785230611,0.1155,4375.0,4374.8,3.2078]
[1756785230912,1.6768605,4374.9,4374.8,3.2078]
[1756785231109,1.6768605,4374.9,4374.8,3.4398]
[1756785231404,0.8805519,4374.9,4374.8,3.4398]
[1756785234312,0.6906,4374.9,4374.8,3.4398]
[1756785234505,0.88301869,4374.9,4374.8,3.4398]
[1756785238011,0.88313463,4374.9,4374.8,3.4398]
[1756785240217,0.48583463,4374.9,4374.8,4.37806791]
[1756785241207,0.19253463,4374.9,4374.8,4.38026791]
[1756785243414,0.48583463,4374.9,4374.8,4.38026791]
[1756785243616,0.2933,4374.9,4374.8,4.38026791]
[1756785243817,0.48587859,4374.9,4374.8,4.38026791]
[1756785244014,0.48587859,4374.9,4374.8,3.442]
[1756785244207,0.2933,4374.9,4374.8,3.442]
[1756785244411,0.48594245,4374.9,4374.8,3.442]
[1756785245914,0.68224245,4374.9,4374.8,3.21]
[1756785246116,0.88324245,4374.9,4374.8,3.2089]
[1756785246311,0.88324245,4374.9,4374.8,0.2331]
[1756785246512,0.88324245,4374.9,4374.8,0.232]
[1756785247114,0.1155,4374.5,4374.3,3.2078]
[1756785247323,0.3973,4374.2,4373.8,3.2078]
[1756785247615,0.59313915,4374.1,4374.0,0.0011]
[1756785247818,0.88643915,4374.1,4374.0,0.0011]
[1756785250921,0.3973,4373.9,4373.8,3.2078]
[1756785251113,0.88643915,4373.9,4373.8,3.4409]
[1756785251827,0.48913915,4373.9,4373.8,3.4435]
[1756785253525,0.67883915,4373.9,4373.8,3.4425]
[1756785254221,0.67855814,4373.9,4373.8,3.4425]
[1756785254426,0.67855804,4373.9,4373.8,3.4425]
[1756785255225,0.67854726,4373.9,4373.8,3.4425]
[1756785260329,0.48884726,4373.9,4373.8,3.4435]
[1756785260831,0.3011,4374.7,4374.6,0.0042]
[1756785261026,0.3011,4374.7,4374.6,3.444]
[1756785261428,0.3011,4374.7,4374.6,44.244]
[1756785261730,0.3011,4374.7,4374.6,3.444]
[1756785262125,0.3011,4374.7,4374.6,44.244]
[1756785262821,0.3011,4374.7,4374.6,44.243]
[1756785263026,0.4908,4374.7,4374.6,3.443]
[1756785265729,0.6953,4374.7,4374.0,3.2078]
[1756785265923,0.6953,4374.1,4374.0,3.2094]
[1756785266125,0.6953,4374.1,4374.0,3.4414]
[1756785266433,0.6953,4374.1,4374.0,3.443]
[1756785271933,3.3323,4375.0,4374.0,4.38226791]
[1756785272134,0.4908,4374.8,4374.7,0.0032]
[1756785272337,0.6953,4374.8,4374.6,0.232]
[1756785272839,0.88825344,4374.7,4374.6,0.232]
[1756785273035,0.88825344,4374.7,4374.6,0.2336]
[1756785274936,0.88825344,4374.7,4374.6,0.2352]
[1756785275336,0.6953,4374.7,4374.6,0.2336]
[1756785275536,0.88264982,4374.7,4374.6,0.2336]
[1756785278241,0.88264982,4374.7,4374.6,0.2352]
[1756785278439,0.88264982,4374.7,4374.6,0.2336]
[1756785280343,0.88264982,4374.7,4374.6,0.232]
[1756785285942,0.6953,4374.7,4374.6,0.232]
[1756785286141,0.88277261,4374.7,4374.6,0.232]
[1756785286855,0.9043749,4374.7,4374.6,0.232]
[1756785292555,0.5101749,4374.7,4374.6,0.46059]
[1756785292749,0.5101749,4374.7,4374.6,0.232]
[1756785293156,0.5101749,4374.7,4374.6,41.032]
[1756785293558,0.5101749,4374.7,4374.6,41.82911374]
[1756785295655,0.5101749,4374.7,4374.6,41.032]
[1756785295846,0.5101749,4374.7,4374.6,41.82911374]
[1756785296456,0.50859767,4374.7,4374.6,41.82911374]
[1756785296657,0.50859571,4374.7,4374.6,41.032]
[1756785297360,0.50856755,4374.7,4374.6,41.032]
[1756785302770,0.6874,4374.6,4374.5,3.2078]
[1756785302968,0.89486755,4374.6,4374.5,3.2078]
[1756785306071,0.90138625,4374.6,4374.5,3.2078]
[1756785306664,5.92707827,4374.6,4374.5,3.2078]
[1756785306874,0.8076,4374.0,4373.9,3.2078]
[1756785307070,1.81868827,4374.0,4373.9,3.2078]
[1756785307570,0.8076,4373.5,4373.4,3.2088]
[1756785307766,1.81868827,4373.5,4373.4,3.4408]
[1756785308871,1.81868827,4373.5,4373.4,3.4398]
[1756785310877,1.02157453,4373.5,4373.4,3.4408]
[1756785312283,1.02116213,4373.5,4373.4,3.4408]
[1756785314174,0.51936213,4373.5,4373.4,4.24051374]
[1756785314375,0.51936213,4373.5,4373.4,4.23951374]
[1756785314575,0.92256213,4373.5,4373.4,3.4424]
[1756785314975,1.04326213,4373.5,4373.4,3.4424]
[1756785315175,0.51936213,4373.5,4373.4,3.4434]
[1756785316179,0.51936213,4373.5,4373.4,4.24051374]
[1756785316378,0.299,4373.8,4373.4,4.24051374]
[1756785316579,0.21318286,4373.7,4373.6,0.0042]
[1756785316780,0.21318286,4373.7,4373.6,1.03331374]
[1756785317889,0.51218286,4373.7,4373.6,1.03331374]
[1756785318782,0.51218286,4373.7,4373.6,1.03231374]
[1756785318986,0.91538286,4373.7,4373.6,0.2352]
[1756785319585,0.72128286,4373.7,4373.6,0.2352]
[1756785319989,0.21318286,4373.7,4373.6,0.2362]